[Event "Late-Titled-Tuesday-Blitz-February-27-2024"]
[Site "Chess.com"]
[Date "2024.02.27"]
[Round "4"]
[White "Sajkochess"]
[Black "ural58"]
[Result "1-0"]
[WhiteElo "2345"]
[BlackElo "2493"]
[TimeControl "180+1"]
[EndTime "14:40:59 PST"]
[Termination "Sajkochess won by resignation"]

1. e4 {[%clk 0:03:00.9]} 1... d5 {[%clk 0:02:51.1]} 2. exd5 {[%clk 0:02:59.4]}
2... Qxd5 {[%clk 0:02:50.8]} 3. Nc3 {[%clk 0:02:59.7]} 3... Qa5 {[%clk
0:02:50.1]} 4. d4 {[%clk 0:02:59.5]} 4... Nf6 {[%clk 0:02:50.6]} 5. Nf3 {[%clk
0:02:59.1]} 5... Nc6 {[%clk 0:02:50.7]} 6. Bb5 {[%clk 0:02:57.5]} 6... Ne4
{[%clk 0:02:50.5]} 7. Bxc6+ {[%clk 0:02:34.1]} 7... bxc6 {[%clk 0:02:49.7]} 8.
O-O {[%clk 0:02:33.2]} 8... Nxc3 {[%clk 0:02:49.7]} 9. bxc3 {[%clk 0:02:32.6]}
9... Bf5 {[%clk 0:02:49]} 10. Bd2 {[%clk 0:02:14.9]} 10... e6 {[%clk 0:02:44.3]}
11. c4 {[%clk 0:02:11.5]} 11... Qa4 {[%clk 0:02:44.2]} 12. Ne5 {[%clk
0:02:11.1]} 12... Qxc2 {[%clk 0:02:36.7]} 13. Qxc2 {[%clk 0:02:04]} 13... Bxc2
{[%clk 0:02:35.9]} 14. Nxc6 {[%clk 0:01:59.5]} 14... Ba4 {[%clk 0:02:29.9]} 15.
d5 {[%clk 0:01:54.2]} 15... Bxc6 {[%clk 0:02:27.2]} 16. dxc6 {[%clk 0:01:54.6]}
16... Bd6 {[%clk 0:02:25.3]} 17. Rab1 {[%clk 0:01:53.9]} 17... Ke7 {[%clk
0:02:20.3]} 18. Rb7 {[%clk 0:01:53.7]} 18... a5 {[%clk 0:02:19.4]} 19. a4 {[%clk
0:01:52.3]} 19... Rhc8 {[%clk 0:02:16.2]} 20. Rfb1 {[%clk 0:01:50.9]} 20... Ra6
{[%clk 0:02:15.7]} 21. Be3 {[%clk 0:01:23.2]} 21... Rxc6 {[%clk 0:02:15]} 22. c5
{[%clk 0:01:23.3]} 22... Be5 {[%clk 0:01:55.7]} 23. Ra7 {[%clk 0:01:22.9]} 23...
Bc3 {[%clk 0:01:51.3]} 24. Rb5 {[%clk 0:01:22.9]} 24... e5 {[%clk 0:01:44.1]}
25. Kf1 {[%clk 0:01:19.3]} 25... f5 {[%clk 0:01:43.2]} 26. f3 {[%clk 0:01:19.3]}
26... h6 {[%clk 0:01:42.5]} 27. Ke2 {[%clk 0:01:02]} 27... Rd8 {[%clk
0:01:41.6]} 28. Rb6 {[%clk 0:00:56]} 28... Kd7 {[%clk 0:01:23.3]} 29. Rbb7
{[%clk 0:00:43.1]} 29... g5 {[%clk 0:01:19.2]} 30. Kd3 {[%clk 0:00:41.5]} 30...
Bb4 {[%clk 0:01:18.7]} 31. Kc4 {[%clk 0:00:41.1]} 31... Rc8 {[%clk 0:01:01.7]}
32. Kd5 {[%clk 0:00:36.2]} 32... Bc3 {[%clk 0:00:30.7]} 33. Rb6 {[%clk
0:00:31.4]} 33... Rxb6 {[%clk 0:00:25]} 34. cxb6 {[%clk 0:00:31.2]} 34... Bb4
{[%clk 0:00:16.5]} 35. Kxe5 {[%clk 0:00:12.9]} 35... f4 {[%clk 0:00:15.1]} 36.
Bf2 {[%clk 0:00:12.1]} 36... Kc6 {[%clk 0:00:14.9]} 37. Rxc7+ {[%clk 0:00:10.5]}
37... Rxc7 {[%clk 0:00:15.1]} 38. bxc7 {[%clk 0:00:11.1]} 38... Kxc7 {[%clk
0:00:15.8]} 39. Kf6 {[%clk 0:00:08.9]} 39... Kc6 {[%clk 0:00:12.2]} 40. Kg6
{[%clk 0:00:08.7]} 40... Bf8 {[%clk 0:00:12.2]} 41. Be1 {[%clk 0:00:08.3]} 41...
Kb6 {[%clk 0:00:11.6]} 42. Bc3 {[%clk 0:00:06.1]} 42... Ka6 {[%clk 0:00:08.2]}
43. Bd4 {[%clk 0:00:06.1]} 43... Kb7 {[%clk 0:00:07.7]} 44. Bg7 {[%clk 0:00:06]}
44... Be7 {[%clk 0:00:04.9]} 45. Bxh6 {[%clk 0:00:05.9]} 45... Kc6 {[%clk
0:00:03.6]} 46. Bxg5 {[%clk 0:00:05.7]} 46... Bd6 {[%clk 0:00:04.3]} 47. Kf5
{[%clk 0:00:05.7]} 47... Kc5 {[%clk 0:00:03.9]} 48. h4 {[%clk 0:00:06]} 48...
Kb4 {[%clk 0:00:03.9]} 49. h5 {[%clk 0:00:06.6]} 49... Kxa4 {[%clk 0:00:03.9]}
50. h6 {[%clk 0:00:06.9]} 50... Bf8 {[%clk 0:00:04.3]} 51. h7 {[%clk 0:00:07.3]}
51... Bg7 {[%clk 0:00:04.6]} 52. Bf6 {[%clk 0:00:07.9]} 1-0

[Event "Late-Titled-Tuesday-Blitz-February-27-2024"]
[Site "Chess.com"]
[Date "2024.02.27"]
[Round "4"]
[White "Evgeny81"]
[Black "MrKGG1"]
[Result "1-0"]
[WhiteElo "2789"]
[BlackElo "2582"]
[TimeControl "180+1"]
[EndTime "14:41:00 PST"]
[Termination "Evgeny81 won by resignation"]

1. e4 {[%clk 0:02:57.3]} 1... e6 {[%clk 0:02:59.3]} 2. d4 {[%clk 0:02:56.7]}
2... d5 {[%clk 0:02:58.3]} 3. Nd2 {[%clk 0:02:57.3]} 3... c5 {[%clk 0:02:57.9]}
4. exd5 {[%clk 0:02:57]} 4... Qxd5 {[%clk 0:02:52]} 5. Ngf3 {[%clk 0:02:57.7]}
5... cxd4 {[%clk 0:02:51.1]} 6. Bc4 {[%clk 0:02:58.4]} 6... Qd7 {[%clk 0:02:50]}
7. O-O {[%clk 0:02:59]} 7... Nc6 {[%clk 0:02:48.2]} 8. Nb3 {[%clk 0:02:59.6]}
8... a6 {[%clk 0:02:47.6]} 9. Nfxd4 {[%clk 0:02:59.7]} 9... Nxd4 {[%clk
0:02:47.9]} 10. Qxd4 {[%clk 0:03:00.4]} 10... Qxd4 {[%clk 0:02:45]} 11. Nxd4
{[%clk 0:03:01.3]} 11... Bd7 {[%clk 0:02:39.3]} 12. Be2 {[%clk 0:03:00.6]} 12...
O-O-O {[%clk 0:02:29.4]} 13. a4 {[%clk 0:02:53.8]} 13... e5 {[%clk 0:02:24.1]}
14. Nb3 {[%clk 0:02:53.3]} 14... Nf6 {[%clk 0:02:04.9]} 15. Be3 {[%clk
0:02:52.7]} 15... Nd5 {[%clk 0:01:52]} 16. Bd2 {[%clk 0:02:52.6]} 16... Be6
{[%clk 0:01:39]} 17. Rfd1 {[%clk 0:02:51.4]} 17... Kb8 {[%clk 0:01:33.7]} 18.
Ba5 {[%clk 0:02:50.1]} 18... Rc8 {[%clk 0:01:31]} 19. Rac1 {[%clk 0:02:36.3]}
19... Nb4 {[%clk 0:01:21.4]} 20. Bxb4 {[%clk 0:02:30.9]} 20... Bxb4 {[%clk
0:01:22.3]} 21. Nd2 {[%clk 0:02:21.8]} 21... f6 {[%clk 0:01:11.7]} 22. c3 {[%clk
0:02:21.7]} 22... Be7 {[%clk 0:01:05.8]} 23. a5 {[%clk 0:02:18.8]} 23... Rc5
{[%clk 0:01:02.9]} 24. b4 {[%clk 0:02:18]} 24... Rc7 {[%clk 0:01:02.5]} 25. Nb1
{[%clk 0:02:05.8]} 25... Rhc8 {[%clk 0:01:00.4]} 26. b5 {[%clk 0:01:59.3]} 26...
axb5 {[%clk 0:00:56.7]} 27. Bxb5 {[%clk 0:02:00.2]} 27... Rd8 {[%clk 0:00:43.4]}
28. Rxd8+ {[%clk 0:01:56]} 28... Bxd8 {[%clk 0:00:44.3]} 29. Rd1 {[%clk
0:01:56.1]} 29... Kc8 {[%clk 0:00:42.5]} 30. a6 {[%clk 0:01:53.5]} 30... b6
{[%clk 0:00:37]} 31. c4 {[%clk 0:01:36.5]} 31... Be7 {[%clk 0:00:36.4]} 32. Nd2
{[%clk 0:01:30.8]} 32... Kb8 {[%clk 0:00:31.6]} 33. Rb1 {[%clk 0:01:14.7]} 33...
Ka7 {[%clk 0:00:29.6]} 34. Kf1 {[%clk 0:01:13.2]} 34... f5 {[%clk 0:00:26.2]}
35. Ke2 {[%clk 0:01:12.2]} 35... e4 {[%clk 0:00:26.1]} 36. Rb3 {[%clk
0:01:04.4]} 36... Bg5 {[%clk 0:00:23.4]} 37. Rg3 {[%clk 0:00:55.5]} 37... Bf6
{[%clk 0:00:22.9]} 38. h3 {[%clk 0:00:52.3]} 38... g5 {[%clk 0:00:22.9]} 39. Rb3
{[%clk 0:00:49.3]} 39... Be7 {[%clk 0:00:17.9]} 40. Ke1 {[%clk 0:00:45.3]} 40...
Bc5 {[%clk 0:00:17.7]} 41. g4 {[%clk 0:00:44.6]} 41... Re7 {[%clk 0:00:17.1]}
42. gxf5 {[%clk 0:00:43.6]} 42... Bxf5 {[%clk 0:00:18]} 43. Nf1 {[%clk
0:00:41.4]} 43... Be6 {[%clk 0:00:15.2]} 44. Ne3 {[%clk 0:00:39.8]} 44... Rf7
{[%clk 0:00:15.5]} 45. Rb2 {[%clk 0:00:34.8]} 45... Bxh3 {[%clk 0:00:14.8]} 46.
Rd2 {[%clk 0:00:33.9]} 46... Be6 {[%clk 0:00:11]} 47. Rd8 {[%clk 0:00:31.6]}
47... Rc7 {[%clk 0:00:10.9]} 48. Re8 {[%clk 0:00:25]} 48... Bc8 {[%clk
0:00:09.8]} 49. Nd5 {[%clk 0:00:22.9]} 49... Bd7 {[%clk 0:00:07.9]} 50. Nxc7
{[%clk 0:00:18.6]} 50... Bxe8 {[%clk 0:00:08.1]} 51. Bxe8 {[%clk 0:00:09.5]}
51... g4 {[%clk 0:00:06.9]} 52. Bc6 {[%clk 0:00:08.9]} 52... e3 {[%clk
0:00:06.6]} 53. fxe3 {[%clk 0:00:08.6]} 53... Bxe3 {[%clk 0:00:07.5]} 54. Bb7
{[%clk 0:00:09]} 54... g3 {[%clk 0:00:05.6]} 55. Nb5+ {[%clk 0:00:09.9]} 55...
Kb8 {[%clk 0:00:05.5]} 56. Bg2 {[%clk 0:00:10]} 56... Bf2+ {[%clk 0:00:03.6]}
57. Ke2 {[%clk 0:00:09.7]} 1-0

[Event "Late-Titled-Tuesday-Blitz-February-27-2024"]
[Site "Chess.com"]
[Date "2024.02.27"]
[Round "4"]
[White "IlanSchnaider"]
[Black "best926"]
[Result "1-0"]
[WhiteElo "2724"]
[BlackElo "2540"]
[TimeControl "180+1"]
[EndTime "14:41:10 PST"]
[Termination "IlanSchnaider won by resignation"]

1. e4 {[%clk 0:03:00.9]} 1... c5 {[%clk 0:02:54.5]} 2. Nf3 {[%clk 0:02:59.9]}
2... d6 {[%clk 0:02:55.1]} 3. Bb5+ {[%clk 0:02:57.7]} 3... Nd7 {[%clk
0:02:55.1]} 4. a4 {[%clk 0:02:56.1]} 4... Nf6 {[%clk 0:02:54.2]} 5. Nc3 {[%clk
0:02:55.9]} 5... e6 {[%clk 0:02:51.3]} 6. O-O {[%clk 0:02:55.3]} 6... Be7 {[%clk
0:02:51.8]} 7. a5 {[%clk 0:02:50.9]} 7... O-O {[%clk 0:02:51.3]} 8. Re1 {[%clk
0:02:49.6]} 8... a6 {[%clk 0:02:41.2]} 9. Bf1 {[%clk 0:02:48.6]} 9... b5 {[%clk
0:02:42.1]} 10. axb6 {[%clk 0:02:47.4]} 10... Bb7 {[%clk 0:02:42.8]} 11. d4
{[%clk 0:02:45.3]} 11... cxd4 {[%clk 0:02:41.8]} 12. Nxd4 {[%clk 0:02:45.2]}
12... Qxb6 {[%clk 0:02:36.6]} 13. Nb3 {[%clk 0:02:37.4]} 13... Nc5 {[%clk
0:01:43.3]} 14. Be3 {[%clk 0:02:30.7]} 14... Qc7 {[%clk 0:01:43.2]} 15. Nxc5
{[%clk 0:02:19.2]} 15... dxc5 {[%clk 0:01:44.1]} 16. f3 {[%clk 0:02:16.7]} 16...
Bd6 {[%clk 0:01:23.6]} 17. g3 {[%clk 0:02:03]} 17... Be5 {[%clk 0:01:10.9]} 18.
Qe2 {[%clk 0:01:39.6]} 18... Rfd8 {[%clk 0:01:10.3]} 19. Qf2 {[%clk 0:01:27.2]}
19... Bd4 {[%clk 0:00:36.9]} 20. Red1 {[%clk 0:01:06.7]} 20... e5 {[%clk
0:00:32.7]} 21. Bc4 {[%clk 0:01:00.2]} 21... Rab8 {[%clk 0:00:24.8]} 22. Kg2
{[%clk 0:00:48]} 22... h6 {[%clk 0:00:21]} 23. Qe2 {[%clk 0:00:43.3]} 23... Rd6
{[%clk 0:00:14.1]} 24. Bd2 {[%clk 0:00:26.5]} 24... Ra8 {[%clk 0:00:04.5]} 25.
Na4 {[%clk 0:00:22.6]} 25... Rad8 {[%clk 0:00:04.1]} 26. c3 {[%clk 0:00:18.2]}
26... g5 {[%clk 0:00:03.9]} 27. cxd4 {[%clk 0:00:17.4]} 27... cxd4 {[%clk
0:00:04.8]} 28. Rdc1 {[%clk 0:00:15.3]} 28... Qe7 {[%clk 0:00:04.1]} 29. Bb4
{[%clk 0:00:15.2]} 29... g4 {[%clk 0:00:04]} 30. Bxd6 {[%clk 0:00:15]} 30...
Qxd6 {[%clk 0:00:03.7]} 31. Bd3 {[%clk 0:00:13.6]} 31... gxf3+ {[%clk
0:00:02.3]} 32. Qxf3 {[%clk 0:00:14]} 32... Nh7 {[%clk 0:00:01.8]} 33. h4 {[%clk
0:00:08.7]} 33... Qe6 {[%clk 0:00:01.6]} 34. Bc4 {[%clk 0:00:07.8]} 34... Qe7
{[%clk 0:00:01.7]} 35. Rf1 {[%clk 0:00:06.7]} 35... Rf8 {[%clk 0:00:01.3]} 36.
Nb6 {[%clk 0:00:07.2]} 36... Kh8 {[%clk 0:00:01.6]} 37. Nd5 {[%clk 0:00:07.7]}
37... Qd6 {[%clk 0:00:02]} 38. Rac1 {[%clk 0:00:07.1]} 38... Bc8 {[%clk
0:00:02.5]} 39. Qh5 {[%clk 0:00:03.6]} 39... Rg8 {[%clk 0:00:01.7]} 40. Qf3
{[%clk 0:00:03.2]} 40... Bg4 {[%clk 0:00:01.9]} 41. Qf2 {[%clk 0:00:03.7]} 41...
Qd8 {[%clk 0:00:01.9]} 42. Rce1 {[%clk 0:00:03.6]} 42... Qc8 {[%clk 0:00:02.8]}
43. Bd3 {[%clk 0:00:03.7]} 43... Bh3+ {[%clk 0:00:03.4]} 44. Kh2 {[%clk
0:00:04.2]} 44... Bxf1 {[%clk 0:00:04.3]} 45. Rxf1 {[%clk 0:00:05]} 45... Qg4
{[%clk 0:00:04.6]} 46. Qf3 {[%clk 0:00:04.7]} 46... Qg7 {[%clk 0:00:04.7]} 47.
Rg1 {[%clk 0:00:04.1]} 47... f6 {[%clk 0:00:04.2]} 48. b3 {[%clk 0:00:02.8]}
48... Rb8 {[%clk 0:00:04.5]} 49. Bc4 {[%clk 0:00:03.3]} 49... Rc8 {[%clk
0:00:04.1]} 50. Qf5 {[%clk 0:00:03.5]} 50... Rg8 {[%clk 0:00:04.3]} 51. Nb6
{[%clk 0:00:02.2]} 51... Rf8 {[%clk 0:00:04.2]} 52. Nd7 {[%clk 0:00:02.1]} 52...
Rd8 {[%clk 0:00:04.7]} 53. Nc5 {[%clk 0:00:02.6]} 53... a5 {[%clk 0:00:04.3]}
54. Ne6 {[%clk 0:00:03.1]} 54... Qf8 {[%clk 0:00:01.8]} 55. Nxf8 {[%clk
0:00:03.5]} 55... Rxf8 {[%clk 0:00:02.5]} 56. Rf1 {[%clk 0:00:03.1]} 1-0

[Event "Late-Titled-Tuesday-Blitz-February-27-2024"]
[Site "Chess.com"]
[Date "2024.02.27"]
[Round "4"]
[White "JulbeNn"]
[Black "MyDream003"]
[Result "0-1"]
[WhiteElo "2534"]
[BlackElo "2722"]
[TimeControl "180+1"]
[EndTime "14:41:11 PST"]
[Termination "MyDream003 won on time"]

1. e4 {[%clk 0:02:59.4]} 1... c6 {[%clk 0:02:57.6]} 2. Nf3 {[%clk 0:02:58.9]}
2... d5 {[%clk 0:02:57.4]} 3. exd5 {[%clk 0:02:59.4]} 3... cxd5 {[%clk
0:02:57.3]} 4. Ne5 {[%clk 0:02:59.6]} 4... a6 {[%clk 0:02:53.6]} 5. d4 {[%clk
0:02:59.6]} 5... Nf6 {[%clk 0:02:53.8]} 6. Bd3 {[%clk 0:02:59.5]} 6... Nc6
{[%clk 0:02:53.2]} 7. c3 {[%clk 0:02:59.2]} 7... g6 {[%clk 0:02:40.7]} 8. O-O
{[%clk 0:02:58.4]} 8... Bg7 {[%clk 0:02:40.6]} 9. Nd2 {[%clk 0:02:58.9]} 9...
Bf5 {[%clk 0:02:37.2]} 10. Bxf5 {[%clk 0:02:58.1]} 10... gxf5 {[%clk 0:02:38.1]}
11. Ndf3 {[%clk 0:02:57.3]} 11... Ne4 {[%clk 0:02:31.5]} 12. Bf4 {[%clk
0:02:55.9]} 12... e6 {[%clk 0:02:25.7]} 13. Re1 {[%clk 0:02:52.7]} 13... O-O
{[%clk 0:02:25.1]} 14. Qd3 {[%clk 0:02:52.3]} 14... Ne7 {[%clk 0:02:21.4]} 15.
Nd2 {[%clk 0:02:45.6]} 15... Ng6 {[%clk 0:02:12.1]} 16. Nxg6 {[%clk 0:02:42.1]}
16... hxg6 {[%clk 0:02:13]} 17. f3 {[%clk 0:02:41.8]} 17... Nd6 {[%clk
0:02:00.7]} 18. Qe3 {[%clk 0:02:32.2]} 18... Nc8 {[%clk 0:01:47.6]} 19. Bg5
{[%clk 0:02:29.3]} 19... Qb6 {[%clk 0:01:46.1]} 20. Nb3 {[%clk 0:02:27.2]} 20...
Re8 {[%clk 0:01:44.6]} 21. Qf2 {[%clk 0:02:14.1]} 21... Nd6 {[%clk 0:01:43.8]}
22. Nc5 {[%clk 0:02:12]} 22... Qc6 {[%clk 0:01:39.7]} 23. Nd3 {[%clk 0:02:08.9]}
23... f6 {[%clk 0:01:30.1]} 24. Bf4 {[%clk 0:02:06.2]} 24... Nf7 {[%clk
0:01:30.4]} 25. Qg3 {[%clk 0:01:59]} 25... g5 {[%clk 0:01:29.5]} 26. Bd2 {[%clk
0:01:58.5]} 26... f4 {[%clk 0:01:25.2]} 27. Bxf4 {[%clk 0:01:56.2]} 27... gxf4
{[%clk 0:01:23.3]} 28. Nxf4 {[%clk 0:01:57.1]} 28... Qd6 {[%clk 0:01:15]} 29.
Re2 {[%clk 0:01:44.6]} 29... Re7 {[%clk 0:00:58.8]} 30. Rae1 {[%clk 0:01:44]}
30... Rae8 {[%clk 0:00:58.9]} 31. Ng6 {[%clk 0:01:38.6]} 31... Rd7 {[%clk
0:00:51.1]} 32. Nf4 {[%clk 0:01:36]} 32... Nd8 {[%clk 0:00:41.7]} 33. Qg6 {[%clk
0:01:32.6]} 33... Ree7 {[%clk 0:00:30]} 34. Nh5 {[%clk 0:01:31.7]} 34... Rf7
{[%clk 0:00:29]} 35. f4 {[%clk 0:00:57.9]} 35... f5 {[%clk 0:00:24.7]} 36. Re3
{[%clk 0:00:54]} 36... Kf8 {[%clk 0:00:22.4]} 37. Rg3 {[%clk 0:00:52.4]} 37...
Rde7 {[%clk 0:00:14.6]} 38. Qh7 {[%clk 0:00:45.8]} 38... Ke8 {[%clk 0:00:08.5]}
39. Nxg7+ {[%clk 0:00:45]} 39... Kd7 {[%clk 0:00:08.2]} 40. Qh6 {[%clk
0:00:34.9]} 40... Qb6 {[%clk 0:00:08.4]} 41. b4 {[%clk 0:00:33.8]} 41... Qc6
{[%clk 0:00:08.3]} 42. Nh5 {[%clk 0:00:29.7]} 42... Qa4 {[%clk 0:00:07.9]} 43.
Rg8 {[%clk 0:00:21]} 43... Kc7 {[%clk 0:00:08.1]} 44. Qh8 {[%clk 0:00:20.5]}
44... Nc6 {[%clk 0:00:08.4]} 45. Ng7 {[%clk 0:00:13.8]} 45... Kb6 {[%clk
0:00:06.8]} 46. Nxe6 {[%clk 0:00:12.9]} 46... Qxa2 {[%clk 0:00:06.5]} 47. Qh6
{[%clk 0:00:06.9]} 47... Qd2 {[%clk 0:00:06.2]} 48. Rf1 {[%clk 0:00:06.6]} 48...
Qe3+ {[%clk 0:00:06.6]} 49. Kh1 {[%clk 0:00:06.5]} 49... Rxe6 {[%clk 0:00:06.9]}
50. Rg6 {[%clk 0:00:07.4]} 50... Rfe7 {[%clk 0:00:06.7]} 51. Qh5 {[%clk
0:00:06.8]} 51... Qf2 {[%clk 0:00:04.9]} 0-1

[Event "Late-Titled-Tuesday-Blitz-February-27-2024"]
[Site "Chess.com"]
[Date "2024.02.27"]
[Round "4"]
[White "Nemsko"]
[Black "campochess"]
[Result "1-0"]
[WhiteElo "2390"]
[BlackElo "2187"]
[TimeControl "180+1"]
[EndTime "14:41:11 PST"]
[Termination "Nemsko won by resignation"]

1. e4 {[%clk 0:03:00.9]} 1... c5 {[%clk 0:02:59.6]} 2. Nf3 {[%clk 0:03:00.9]}
2... Nc6 {[%clk 0:02:59.6]} 3. d4 {[%clk 0:03:01.4]} 3... cxd4 {[%clk
0:02:59.5]} 4. Nxd4 {[%clk 0:03:02.3]} 4... e5 {[%clk 0:02:58.9]} 5. Nb5 {[%clk
0:03:01.8]} 5... a6 {[%clk 0:02:59.1]} 6. Nd6+ {[%clk 0:03:00.2]} 6... Bxd6
{[%clk 0:02:58.6]} 7. Qxd6 {[%clk 0:03:01.1]} 7... Qe7 {[%clk 0:02:58.8]} 8. Qd2
{[%clk 0:02:55.7]} 8... Nf6 {[%clk 0:02:57.7]} 9. Nc3 {[%clk 0:02:55.8]} 9... d6
{[%clk 0:02:57.5]} 10. f3 {[%clk 0:02:55.8]} 10... Be6 {[%clk 0:02:57.5]} 11.
Qf2 {[%clk 0:02:55.1]} 11... Rd8 {[%clk 0:02:57.2]} 12. Be3 {[%clk 0:02:55.8]}
12... d5 {[%clk 0:02:55.4]} 13. Bc5 {[%clk 0:02:51.2]} 13... Qd7 {[%clk
0:02:47.5]} 14. exd5 {[%clk 0:02:44.5]} 14... Nxd5 {[%clk 0:02:46.3]} 15. O-O-O
{[%clk 0:02:40.1]} 15... Qc8 {[%clk 0:02:32.9]} 16. Ne4 {[%clk 0:02:36.6]} 16...
Nd4 {[%clk 0:02:22.5]} 17. Nd6+ {[%clk 0:02:22.4]} 17... Rxd6 {[%clk 0:02:21.4]}
18. Bxd6 {[%clk 0:02:23.3]} 18... f6 {[%clk 0:02:09.3]} 19. Bd3 {[%clk
0:02:10.4]} 19... Kf7 {[%clk 0:02:08.7]} 20. Kb1 {[%clk 0:01:47.4]} 20... Rd8
{[%clk 0:02:07.1]} 21. Ba3 {[%clk 0:01:47.3]} 21... Nf4 {[%clk 0:02:03.1]} 22.
Rc1 {[%clk 0:01:21.9]} 22... Nxd3 {[%clk 0:01:58.3]} 23. cxd3 {[%clk 0:01:22.8]}
23... Qd7 {[%clk 0:01:57.5]} 24. Rhd1 {[%clk 0:01:14.2]} 24... Qd5 {[%clk
0:01:55.6]} 25. b3 {[%clk 0:01:12.7]} 25... Kg8 {[%clk 0:01:52.8]} 26. Rc5
{[%clk 0:01:06.4]} 26... Qd7 {[%clk 0:01:51.4]} 27. Bb2 {[%clk 0:00:57.1]} 27...
Nb5 {[%clk 0:01:50.3]} 28. g4 {[%clk 0:00:38.8]} 28... Rc8 {[%clk 0:01:44.6]}
29. Rxc8+ {[%clk 0:00:38.1]} 29... Qxc8 {[%clk 0:01:44.3]} 30. Qc2 {[%clk
0:00:29.6]} 30... Qd7 {[%clk 0:01:42]} 31. Qc5 {[%clk 0:00:24.1]} 31... Nc7
{[%clk 0:01:35.7]} 32. d4 {[%clk 0:00:23.7]} 32... e4 {[%clk 0:01:33.5]} 33.
fxe4 {[%clk 0:00:22.7]} 33... Bxg4 {[%clk 0:01:31.3]} 34. Rc1 {[%clk 0:00:23.2]}
34... Ne6 {[%clk 0:01:30.1]} 35. Qc8+ {[%clk 0:00:23.1]} 35... Nf8 {[%clk
0:01:29.4]} 36. Qxd7 {[%clk 0:00:23.1]} 36... Bxd7 {[%clk 0:01:28.4]} 37. d5
{[%clk 0:00:22.7]} 37... Kf7 {[%clk 0:01:22.5]} 38. Rc7 {[%clk 0:00:21.2]} 38...
b5 {[%clk 0:01:22.1]} 39. Ra7 {[%clk 0:00:20]} 39... Ke8 {[%clk 0:01:16.1]} 40.
Rxa6 {[%clk 0:00:19.8]} 40... Ng6 {[%clk 0:01:12.4]} 41. Bd4 {[%clk 0:00:18.8]}
41... Nf4 {[%clk 0:01:10.9]} 42. Kc2 {[%clk 0:00:17]} 42... f5 {[%clk
0:01:02.1]} 43. Ra8+ {[%clk 0:00:14.6]} 43... Kf7 {[%clk 0:01:00.6]} 44. Ra7
{[%clk 0:00:13.6]} 44... Ke8 {[%clk 0:01:00.2]} 45. exf5 {[%clk 0:00:11]} 45...
Nxd5 {[%clk 0:00:58.1]} 46. Bxg7 {[%clk 0:00:09]} 46... Bxf5+ {[%clk 0:00:56.9]}
47. Kb2 {[%clk 0:00:08.8]} 47... b4 {[%clk 0:00:55.9]} 48. Bd4 {[%clk
0:00:08.1]} 48... h5 {[%clk 0:00:53.5]} 49. Ra5 {[%clk 0:00:07.1]} 49... Be4
{[%clk 0:00:52.6]} 50. Ra6 {[%clk 0:00:05.5]} 50... Kf7 {[%clk 0:00:51.4]} 51.
Rh6 {[%clk 0:00:04.7]} 51... Bf3 {[%clk 0:00:51.5]} 52. Rd6 {[%clk 0:00:03.1]}
52... Ke7 {[%clk 0:00:49.6]} 53. Ra6 {[%clk 0:00:02.7]} 53... Kf7 {[%clk
0:00:48.4]} 54. Ra7+ {[%clk 0:00:02.7]} 54... Ke6 {[%clk 0:00:47.9]} 55. Ra6+
{[%clk 0:00:03.1]} 55... Kf5 {[%clk 0:00:47.7]} 56. Bc5 {[%clk 0:00:02.7]} 56...
Ke4 {[%clk 0:00:47.6]} 57. Ra4 {[%clk 0:00:02.3]} 57... Kd3 {[%clk 0:00:41.9]}
58. Bxb4 {[%clk 0:00:02.4]} 58... Ne3 {[%clk 0:00:42]} 59. Bc5 {[%clk
0:00:01.9]} 59... Nd1+ {[%clk 0:00:41.6]} 60. Ka3 {[%clk 0:00:02.6]} 60... Nc3
{[%clk 0:00:41.7]} 61. Rd4+ {[%clk 0:00:03]} 61... Kc2 {[%clk 0:00:41.1]} 62.
Rh4 {[%clk 0:00:03.8]} 62... Nb1+ {[%clk 0:00:39.8]} 63. Ka4 {[%clk 0:00:04.1]}
63... Nd2 {[%clk 0:00:38.9]} 64. Ka5 {[%clk 0:00:04.3]} 64... Ne4 {[%clk
0:00:38.7]} 65. Bb4 {[%clk 0:00:04.7]} 65... Kb2 {[%clk 0:00:32.2]} 66. Rf4
{[%clk 0:00:04.8]} 66... Ng5 {[%clk 0:00:19.5]} 67. h4 {[%clk 0:00:05]} 1-0